[Event "Late-Titled-Tuesday-Blitz-March-19-2024"]
[Site "Chess.com"]
[Date "2024.03.19"]
[Round "4"]
[White "Shahdad2007"]
[Black "Eduard_Limonov"]
[Result "1/2-1/2"]
[WhiteElo "2613"]
[BlackElo "2852"]
[TimeControl "180+1"]
[EndTime "14:41:51 PDT"]
[Termination "Game drawn by repetition"]

1. e4 {[%clk 0:03:00.9]} 1... c5 {[%clk 0:02:57.7]} 2. Nf3 {[%clk 0:02:58.9]}
2... d6 {[%clk 0:02:57.8]} 3. d4 {[%clk 0:02:58.9]} 3... cxd4 {[%clk 0:02:58.6]}
4. Nxd4 {[%clk 0:02:59.8]} 4... Nf6 {[%clk 0:02:59.1]} 5. Nc3 {[%clk 0:02:59.6]}
5... a6 {[%clk 0:02:59.8]} 6. Be3 {[%clk 0:02:59.4]} 6... e5 {[%clk 0:02:59.9]}
7. Nb3 {[%clk 0:02:55.6]} 7... Be6 {[%clk 0:02:59.5]} 8. f3 {[%clk 0:02:55.8]}
8... h5 {[%clk 0:02:57.6]} 9. Qd2 {[%clk 0:02:56]} 9... Nbd7 {[%clk 0:02:54.9]}
10. O-O-O {[%clk 0:02:56.3]} 10... Rc8 {[%clk 0:02:50.3]} 11. Nd5 {[%clk
0:02:52.3]} 11... Nxd5 {[%clk 0:02:47]} 12. exd5 {[%clk 0:02:43.9]} 12... Bf5
{[%clk 0:02:47.1]} 13. Bd3 {[%clk 0:02:44.4]} 13... Bxd3 {[%clk 0:02:46]} 14.
Qxd3 {[%clk 0:02:45.3]} 14... Be7 {[%clk 0:02:40.4]} 15. Kb1 {[%clk 0:02:43.2]}
15... Nb6 {[%clk 0:02:28.9]} 16. g4 {[%clk 0:02:40.6]} 16... Nc4 {[%clk
0:02:22]} 17. Bc1 {[%clk 0:02:40]} 17... b5 {[%clk 0:02:05.1]} 18. Rdg1 {[%clk
0:02:28]} 18... g6 {[%clk 0:02:03.2]} 19. gxh5 {[%clk 0:02:19.5]} 19... Rxh5
{[%clk 0:01:31.3]} 20. Rxg6 {[%clk 0:02:17.8]} 20... Kd7 {[%clk 0:01:32]} 21.
Rg2 {[%clk 0:02:07.8]} 21... Qh8 {[%clk 0:01:27]} 22. Nd2 {[%clk 0:01:51.2]}
22... Qh7 {[%clk 0:01:10]} 23. Ne4 {[%clk 0:01:21.2]} 23... f5 {[%clk
0:01:02.8]} 24. Ng3 {[%clk 0:01:20.5]} 24... Rg8 {[%clk 0:00:41.2]} 25. b3
{[%clk 0:00:36.8]} 25... f4 {[%clk 0:00:41]} 26. Qxh7 {[%clk 0:00:35.6]} 26...
Rxh7 {[%clk 0:00:41.6]} 27. bxc4 {[%clk 0:00:35.8]} 27... bxc4 {[%clk
0:00:26.6]} 28. Rhg1 {[%clk 0:00:29.3]} 28... fxg3 {[%clk 0:00:26.5]} 29. hxg3
{[%clk 0:00:28.7]} 29... Rb8+ {[%clk 0:00:26.7]} 30. Ka1 {[%clk 0:00:28.7]}
30... e4 {[%clk 0:00:27.2]} 31. fxe4 {[%clk 0:00:20.1]} 31... Bf6+ {[%clk
0:00:24.4]} 32. c3 {[%clk 0:00:20.7]} 32... Bxc3+ {[%clk 0:00:21.7]} 33. Bb2
{[%clk 0:00:21.3]} 33... Rxb2 {[%clk 0:00:20]} 34. Rxb2 {[%clk 0:00:22.2]} 34...
Rh2 {[%clk 0:00:18.8]} 35. Rb1 {[%clk 0:00:20.7]} 35... Re2 {[%clk 0:00:05.9]}
36. a4 {[%clk 0:00:19.8]} 36... Rxe4 {[%clk 0:00:06.3]} 37. Ka2 {[%clk
0:00:20.4]} 37... Bxb2 {[%clk 0:00:06.8]} 38. Rxb2 {[%clk 0:00:20]} 38... Kc7
{[%clk 0:00:07.3]} 39. a5 {[%clk 0:00:15.4]} 39... Rd4 {[%clk 0:00:07]} 40. Rb6
{[%clk 0:00:15.8]} 40... Rxd5 {[%clk 0:00:06.6]} 41. Rxa6 {[%clk 0:00:16.5]}
41... Rg5 {[%clk 0:00:07]} 42. Ka3 {[%clk 0:00:15.8]} 42... Rxg3+ {[%clk
0:00:04.3]} 43. Kb4 {[%clk 0:00:16.2]} 43... d5 {[%clk 0:00:04.6]} 44. Rf6
{[%clk 0:00:15.4]} 44... Rb3+ {[%clk 0:00:04.6]} 45. Kc5 {[%clk 0:00:15.6]}
45... c3 {[%clk 0:00:04.8]} 46. Kxd5 {[%clk 0:00:13]} 46... Rb5+ {[%clk
0:00:02]} 47. Kc4 {[%clk 0:00:12.6]} 47... c2 {[%clk 0:00:02.3]} 48. Kxb5 {[%clk
0:00:10.6]} 48... c1=Q {[%clk 0:00:01.8]} 49. Rf7+ {[%clk 0:00:08.8]} 49... Kb8
{[%clk 0:00:02]} 50. Rf8+ {[%clk 0:00:09.2]} 50... Kc7 {[%clk 0:00:02.6]} 51.
Rf7+ {[%clk 0:00:09.8]} 51... Kd6 {[%clk 0:00:03.3]} 52. Rf6+ {[%clk 0:00:10.4]}
52... Ke7 {[%clk 0:00:03.7]} 53. Rb6 {[%clk 0:00:10.7]} 53... Kd7 {[%clk
0:00:04.4]} 54. Ka6 {[%clk 0:00:09.2]} 54... Kc7 {[%clk 0:00:04]} 55. Ka7 {[%clk
0:00:09.2]} 55... Qc5 {[%clk 0:00:03.8]} 56. Ka6 {[%clk 0:00:09.3]} 56... Qc4+
{[%clk 0:00:03.7]} 57. Ka7 {[%clk 0:00:08.5]} 57... Qd3 {[%clk 0:00:02.7]} 58.
Rb7+ {[%clk 0:00:07.7]} 58... Kc6 {[%clk 0:00:03.1]} 59. Rb6+ {[%clk 0:00:08]}
59... Kc5 {[%clk 0:00:03.2]} 60. a6 {[%clk 0:00:08]} 60... Qd8 {[%clk
0:00:02.3]} 61. Rb7 {[%clk 0:00:07.9]} 61... Kc6 {[%clk 0:00:02.7]} 62. Rb8
{[%clk 0:00:07.2]} 62... Qd4+ {[%clk 0:00:02.8]} 63. Ka8 {[%clk 0:00:07]} 63...
Kc7 {[%clk 0:00:03.3]} 64. Rb7+ {[%clk 0:00:06.9]} 64... Kc6 {[%clk 0:00:02.7]}
65. Rb8 {[%clk 0:00:07.4]} 65... Qd5 {[%clk 0:00:02.8]} 66. Rb7 {[%clk
0:00:06.6]} 66... Qa5 {[%clk 0:00:02]} 67. Ka7 {[%clk 0:00:06]} 67... Qc5+
{[%clk 0:00:02]} 68. Ka8 {[%clk 0:00:06.1]} 68... Qf8+ {[%clk 0:00:02.6]} 69.
Rb8 {[%clk 0:00:06.3]} 69... Qf3 {[%clk 0:00:02.8]} 70. Rb7 {[%clk 0:00:06.4]}
70... Qe4 {[%clk 0:00:03]} 71. Ka7 {[%clk 0:00:03.9]} 71... Qe8 {[%clk
0:00:03.6]} 72. Rb8 {[%clk 0:00:03.5]} 72... Qe7+ {[%clk 0:00:03.2]} 73. Ka8
{[%clk 0:00:04.1]} 73... Qa3 {[%clk 0:00:02.3]} 74. Ka7 {[%clk 0:00:04.6]} 74...
Qa5 {[%clk 0:00:02.2]} 75. Rb7 {[%clk 0:00:04.9]} 75... Qc5+ {[%clk 0:00:02.4]}
76. Ka8 {[%clk 0:00:05.3]} 76... Qc4 {[%clk 0:00:02.8]} 77. Ka7 {[%clk
0:00:05.1]} 77... Qf1 {[%clk 0:00:03.4]} 78. Rb8 {[%clk 0:00:04.7]} 78... Kd7
{[%clk 0:00:03.2]} 79. Rb7+ {[%clk 0:00:04.6]} 79... Kd6 {[%clk 0:00:03.8]} 80.
Rb6+ {[%clk 0:00:04.8]} 80... Kc5 {[%clk 0:00:03.2]} 81. Rb7 {[%clk 0:00:04.2]}
81... Qf4 {[%clk 0:00:03]} 82. Ka8 {[%clk 0:00:03.4]} 82... Kc6 {[%clk
0:00:03.5]} 83. Ka7 {[%clk 0:00:03]} 83... Qe5 {[%clk 0:00:04]} 84. Ka8 {[%clk
0:00:03.1]} 84... Qe2 {[%clk 0:00:03.4]} 85. Ka7 {[%clk 0:00:02.9]} 85... Qf2+
{[%clk 0:00:03.8]} 86. Ka8 {[%clk 0:00:03.1]} 86... Qg1 {[%clk 0:00:03.6]} 87.
Rb8 {[%clk 0:00:03]} 87... Qg3 {[%clk 0:00:03.2]} 88. Rb7 {[%clk 0:00:02.7]}
88... Qg1 {[%clk 0:00:03.2]} 89. Rb8 {[%clk 0:00:02.5]} 89... Kd7 {[%clk
0:00:03.9]} 90. Rb7+ {[%clk 0:00:02.7]} 90... Kd6 {[%clk 0:00:04.5]} 91. Rb8
{[%clk 0:00:03.1]} 91... Qg3 {[%clk 0:00:05.1]} 92. Rb7 {[%clk 0:00:03.2]} 92...
Qg1 {[%clk 0:00:05]} 93. Rb8 {[%clk 0:00:02.9]} 93... Qf1 {[%clk 0:00:05.5]} 94.
Ka7 {[%clk 0:00:02.8]} 94... Qf2+ {[%clk 0:00:05.5]} 95. Ka8 {[%clk 0:00:02.6]}
95... Qe2 {[%clk 0:00:05.2]} 96. Ka7 {[%clk 0:00:03]} 96... Qe3+ {[%clk
0:00:05.7]} 97. Ka8 {[%clk 0:00:03.4]} 97... Qf4 {[%clk 0:00:05.8]} 98. Ka7
{[%clk 0:00:03.4]} 98... Kc7 {[%clk 0:00:05.9]} 99. Rb7+ {[%clk 0:00:03.8]}
99... Kc8 {[%clk 0:00:06.4]} 100. Ka8 {[%clk 0:00:04.2]} 100... Qe4 {[%clk
0:00:06.3]} 101. Ka7 {[%clk 0:00:04.3]} 101... Qc6 {[%clk 0:00:06.9]} 102. Rb8+
{[%clk 0:00:04]} 102... Kc7 {[%clk 0:00:07.1]} 103. Rb7+ {[%clk 0:00:04.9]}
103... Kc8 {[%clk 0:00:07.6]} 104. Rb8+ {[%clk 0:00:05.4]} 104... Kc7 {[%clk
0:00:08.3]} 105. Rb7+ {[%clk 0:00:06.1]} 105... Kc8 {[%clk 0:00:09]} 1/2-1/2

[Event "Late-Titled-Tuesday-Blitz-March-19-2024"]
[Site "Chess.com"]
[Date "2024.03.19"]
[Round "5"]
[White "Rodalquilar"]
[Black "GotCheeseCheckers"]
[Result "1-0"]
[WhiteElo "2767"]
[BlackElo "2526"]
[TimeControl "180+1"]
[EndTime "14:49:16 PDT"]
[Termination "Rodalquilar won by resignation"]

1. d4 {[%clk 0:03:00.9]} 1... c5 {[%clk 0:02:56.2]} 2. c3 {[%clk 0:03:00.8]}
2... cxd4 {[%clk 0:02:53]} 3. cxd4 {[%clk 0:03:01.7]} 3... Nf6 {[%clk 0:02:53]}
4. Nc3 {[%clk 0:03:01.5]} 4... g6 {[%clk 0:02:51.1]} 5. e4 {[%clk 0:03:01.4]}
5... d6 {[%clk 0:02:51.5]} 6. h3 {[%clk 0:03:00.3]} 6... Bg7 {[%clk 0:02:51.1]}
7. Nf3 {[%clk 0:03:00.6]} 7... O-O {[%clk 0:02:51.4]} 8. Be2 {[%clk 0:02:50.1]}
8... b6 {[%clk 0:02:50.6]} 9. O-O {[%clk 0:02:48.4]} 9... Ba6 {[%clk 0:02:50.7]}
10. Bxa6 {[%clk 0:02:44.2]} 10... Nxa6 {[%clk 0:02:51.6]} 11. a3 {[%clk
0:02:44.4]} 11... Qd7 {[%clk 0:02:50.3]} 12. Re1 {[%clk 0:02:44.1]} 12... Rfd8
{[%clk 0:02:46.5]} 13. Qe2 {[%clk 0:02:36.8]} 13... Rac8 {[%clk 0:02:44.4]} 14.
Qxa6 {[%clk 0:02:36.2]} 1-0

[Event "Late-Titled-Tuesday-Blitz-March-19-2024"]
[Site "Chess.com"]
[Date "2024.03.19"]
[Round "5"]
[White "nihalsarin"]
[Black "FredddieCroderg"]
[Result "1-0"]
[WhiteElo "3159"]
[BlackElo "2293"]
[TimeControl "180+1"]
[EndTime "14:49:44 PDT"]
[Termination "nihalsarin won by resignation"]

1. Nf3 {[%clk 0:02:57.7]} 1... Nf6 {[%clk 0:02:55.1]} 2. e3 {[%clk 0:02:58.6]}
2... e6 {[%clk 0:02:54.8]} 3. b3 {[%clk 0:02:53.7]} 3... d5 {[%clk 0:02:54.2]}
4. Bb2 {[%clk 0:02:54.6]} 4... Be7 {[%clk 0:02:53.6]} 5. c4 {[%clk 0:02:55.3]}
5... O-O {[%clk 0:02:53.2]} 6. Nc3 {[%clk 0:02:56]} 6... c5 {[%clk 0:02:51.6]}
7. cxd5 {[%clk 0:02:56.3]} 7... exd5 {[%clk 0:02:50]} 8. Rc1 {[%clk 0:02:57]}
8... Nc6 {[%clk 0:02:48.3]} 9. Bb5 {[%clk 0:02:56.9]} 9... Bd7 {[%clk
0:02:46.2]} 10. O-O {[%clk 0:02:57]} 10... Re8 {[%clk 0:02:44.1]} 11. d4 {[%clk
0:02:56.9]} 11... cxd4 {[%clk 0:02:42.5]} 12. Nxd4 {[%clk 0:02:57.8]} 12... Nxd4
{[%clk 0:02:42.1]} 13. Qxd4 {[%clk 0:02:58.7]} 13... Bxb5 {[%clk 0:02:38.7]} 14.
Nxb5 {[%clk 0:02:59.6]} 14... a6 {[%clk 0:02:38.2]} 15. Nc7 {[%clk 0:02:59.9]}
15... Rc8 {[%clk 0:02:34]} 16. Nxe8 {[%clk 0:03:00.2]} 16... Qxe8 {[%clk
0:02:33.9]} 17. Rxc8 {[%clk 0:02:59.8]} 17... Qxc8 {[%clk 0:02:33.4]} 18. Rc1
{[%clk 0:03:00.6]} 18... Qd7 {[%clk 0:02:32.2]} 19. Qc3 {[%clk 0:03:01.2]} 19...
h6 {[%clk 0:02:12.9]} 20. Qc8+ {[%clk 0:03:02.1]} 20... Qxc8 {[%clk 0:02:11.4]}
21. Rxc8+ {[%clk 0:03:03]} 21... Kh7 {[%clk 0:02:11.5]} 22. Rc7 {[%clk
0:03:03.8]} 1-0

[Event "Late-Titled-Tuesday-Blitz-March-19-2024"]
[Site "Chess.com"]
[Date "2024.03.19"]
[Round "5"]
[White "annasargsyan_m"]
[Black "Licancabur"]
[Result "0-1"]
[WhiteElo "2624"]
[BlackElo "2507"]
[TimeControl "180+1"]
[EndTime "14:49:59 PDT"]
[Termination "Licancabur won by resignation"]

1. d4 {[%clk 0:02:45.8]} 1... d5 {[%clk 0:02:57.6]} 2. c4 {[%clk 0:02:46.7]}
2... dxc4 {[%clk 0:02:57.5]} 3. Nc3 {[%clk 0:02:47.4]} 3... a6 {[%clk
0:02:52.4]} 4. e3 {[%clk 0:02:42.1]} 4... e5 {[%clk 0:02:38.6]} 5. Bxc4 {[%clk
0:02:40.1]} 5... exd4 {[%clk 0:02:38.1]} 6. exd4 {[%clk 0:02:38.2]} 6... Bd6
{[%clk 0:02:35.8]} 7. Qb3 {[%clk 0:02:35.4]} 7... Qe7+ {[%clk 0:02:30.6]} 8. Be3
{[%clk 0:02:35]} 8... Nf6 {[%clk 0:02:25.6]} 9. Nf3 {[%clk 0:02:30]} 9... b5
{[%clk 0:02:19]} 10. Bd5 {[%clk 0:02:24.5]} 10... c6 {[%clk 0:02:13]} 0-1

[Event "Late-Titled-Tuesday-Blitz-March-19-2024"]
[Site "Chess.com"]
[Date "2024.03.19"]
[Round "5"]
[White "ploxoi"]
[Black "sacrifoice"]
[Result "0-1"]
[WhiteElo "2409"]
[BlackElo "2232"]
[TimeControl "180+1"]
[EndTime "14:51:05 PDT"]
[Termination "sacrifoice won by resignation"]

1. d4 {[%clk 0:03:00.9]} 1... Nf6 {[%clk 0:02:59]} 2. c4 {[%clk 0:02:59.5]} 2...
e6 {[%clk 0:02:59.1]} 3. g3 {[%clk 0:02:58.5]} 3... d5 {[%clk 0:02:58.4]} 4. Bg2
{[%clk 0:02:58.1]} 4... Be7 {[%clk 0:02:58.2]} 5. Nf3 {[%clk 0:02:58.2]} 5...
O-O {[%clk 0:02:58]} 6. O-O {[%clk 0:02:58.4]} 6... b6 {[%clk 0:02:58]} 7. cxd5
{[%clk 0:02:57.9]} 7... exd5 {[%clk 0:02:58]} 8. Nc3 {[%clk 0:02:58]} 8... Bb7
{[%clk 0:02:57.9]} 9. Ne5 {[%clk 0:02:58.3]} 9... c6 {[%clk 0:02:56]} 10. e4
{[%clk 0:02:56.3]} 10... Nbd7 {[%clk 0:02:54.8]} 11. Nxc6 {[%clk 0:02:52.7]}
11... Bxc6 {[%clk 0:02:51]} 12. exd5 {[%clk 0:02:53.1]} 12... Bb7 {[%clk
0:02:44.1]} 13. d6 {[%clk 0:02:51.9]} 13... Bxg2 {[%clk 0:02:30.4]} 14. dxe7
{[%clk 0:02:51.3]} 14... Qxe7 {[%clk 0:02:30.7]} 15. Kxg2 {[%clk 0:02:50.6]}
15... Rfd8 {[%clk 0:02:25.3]} 16. Be3 {[%clk 0:02:48.5]} 16... Rac8 {[%clk
0:02:24.2]} 17. Qa4 {[%clk 0:02:42.4]} 17... Nf8 {[%clk 0:02:19.3]} 18. Rfe1
{[%clk 0:02:41.1]} 18... Qb7+ {[%clk 0:02:17]} 19. Kg1 {[%clk 0:02:39.4]} 19...
h5 {[%clk 0:02:12.9]} 20. Ne2 {[%clk 0:02:31.8]} 20... h4 {[%clk 0:02:09.7]} 21.
Nf4 {[%clk 0:02:29.2]} 21... g5 {[%clk 0:02:03.8]} 22. Nd3 {[%clk 0:02:23.1]}
22... h3 {[%clk 0:02:03]} 23. f3 {[%clk 0:02:12.6]} 23... Qxf3 {[%clk
0:02:01.7]} 0-1

[Event "Late-Titled-Tuesday-Blitz-March-19-2024"]
[Site "Chess.com"]
[Date "2024.03.19"]
[Round "5"]
[White "stolencandy13"]
[Black "Mr_Heisenberg13"]
[Result "0-1"]
[WhiteElo "2553"]
[BlackElo "2926"]
[TimeControl "180+1"]
[EndTime "14:51:16 PDT"]
[Termination "Mr_Heisenberg13 won by resignation"]

1. d4 {[%clk 0:03:00.9]} 1... Nf6 {[%clk 0:02:59]} 2. Bf4 {[%clk 0:03:00.9]}
2... d5 {[%clk 0:02:58.7]} 3. e3 {[%clk 0:03:01.4]} 3... c5 {[%clk 0:02:59]} 4.
c3 {[%clk 0:03:01.6]} 4... Nc6 {[%clk 0:02:59.4]} 5. Nd2 {[%clk 0:03:01.5]} 5...
e6 {[%clk 0:02:59.6]} 6. Bd3 {[%clk 0:02:56.5]} 6... Be7 {[%clk 0:02:50.8]} 7.
Ngf3 {[%clk 0:02:55.7]} 7... Nh5 {[%clk 0:02:50.5]} 8. Be5 {[%clk 0:02:53]} 8...
f6 {[%clk 0:02:50.3]} 9. Bg3 {[%clk 0:02:51.3]} 9... g6 {[%clk 0:02:49.3]} 10.
Qe2 {[%clk 0:02:45.9]} 10... O-O {[%clk 0:02:41.7]} 11. Bh4 {[%clk 0:02:38.6]}
11... cxd4 {[%clk 0:02:37.6]} 12. exd4 {[%clk 0:02:37.6]} 12... Nf4 {[%clk
0:02:36.7]} 13. Qf1 {[%clk 0:02:34.9]} 13... e5 {[%clk 0:02:36.1]} 14. dxe5
{[%clk 0:02:23.7]} 14... fxe5 {[%clk 0:02:34.9]} 15. Bxe7 {[%clk 0:02:17.5]}
15... Qxe7 {[%clk 0:02:35.8]} 16. Bc2 {[%clk 0:02:06.8]} 16... e4 {[%clk
0:02:34.7]} 17. Nd4 {[%clk 0:01:30.8]} 17... Nxd4 {[%clk 0:02:33.4]} 18. cxd4
{[%clk 0:01:29.9]} 18... e3 {[%clk 0:02:33.9]} 19. fxe3 {[%clk 0:01:11.8]} 19...
Qxe3+ {[%clk 0:02:34.8]} 20. Kd1 {[%clk 0:01:11.3]} 20... Bg4+ {[%clk
0:02:34.2]} 21. Nf3 {[%clk 0:01:08.2]} 21... Nxg2 {[%clk 0:02:31.8]} 22. Qxg2
{[%clk 0:01:06.4]} 0-1

[Event "Late-Titled-Tuesday-Blitz-March-19-2024"]
[Site "Chess.com"]
[Date "2024.03.19"]
[Round "5"]
[White "Der_Balak_3Halak"]
[Black "wallowss"]
[Result "1-0"]
[WhiteElo "2416"]
[BlackElo "2125"]
[TimeControl "180+1"]
[EndTime "14:51:37 PDT"]
[Termination "Der_Balak_3Halak won by resignation"]

1. e4 {[%clk 0:02:59.1]} 1... g6 {[%clk 0:03:00.3]} 2. h4 {[%clk 0:02:55.6]}
2... h6 {[%clk 0:02:57.7]} 3. h5 {[%clk 0:02:54.4]} 3... g5 {[%clk 0:02:57.6]}
4. d4 {[%clk 0:02:54.8]} 4... Bg7 {[%clk 0:02:56]} 5. Be3 {[%clk 0:02:51.4]}
5... d5 {[%clk 0:02:54.6]} 6. e5 {[%clk 0:02:51.3]} 6... c5 {[%clk 0:02:54.7]}
7. c3 {[%clk 0:02:50.9]} 7... Nc6 {[%clk 0:02:53.6]} 8. Bd3 {[%clk 0:02:49.6]}
8... cxd4 {[%clk 0:02:50.4]} 9. cxd4 {[%clk 0:02:49.4]} 9... Qb6 {[%clk
0:02:51]} 10. Nc3 {[%clk 0:02:44.7]} 10... Qxb2 {[%clk 0:02:50.4]} 11. Nge2
{[%clk 0:02:44.6]} 11... Be6 {[%clk 0:02:33.2]} 12. Nb5 {[%clk 0:02:41.2]} 12...
Rc8 {[%clk 0:02:24.6]} 13. a3 {[%clk 0:02:35.7]} 13... Na5 {[%clk 0:01:52.7]}
14. Rb1 {[%clk 0:02:32]} 14... Qa2 {[%clk 0:01:31.4]} 15. Nec3 {[%clk
0:02:30.8]} 15... Rxc3 {[%clk 0:01:31.4]} 16. Nxc3 {[%clk 0:02:31.7]} 16... Qxa3
{[%clk 0:01:31.9]} 17. Nb5 {[%clk 0:02:29.6]} 17... Qa2 {[%clk 0:01:25]} 18. Ra1
{[%clk 0:02:28]} 18... Qb3 {[%clk 0:01:06.5]} 19. Rxa5 {[%clk 0:02:26.4]} 19...
Qb4+ {[%clk 0:01:00.8]} 20. Qd2 {[%clk 0:02:24.3]} 1-0

[Event "Late-Titled-Tuesday-Blitz-March-19-2024"]
[Site "Chess.com"]
[Date "2024.03.19"]
[Round "5"]
[White "Blitzstream"]
[Black "BabageldiAnnaberdiyev"]
[Result "1-0"]
[WhiteElo "2837"]
[BlackElo "2629"]
[TimeControl "180+1"]
[EndTime "14:51:39 PDT"]
[Termination "Blitzstream won by resignation"]

1. e4 {[%clk 0:03:00.9]} 1... e6 {[%clk 0:03:00.4]} 2. d4 {[%clk 0:02:59.4]}
2... d5 {[%clk 0:03:00.3]} 3. Nd2 {[%clk 0:03:00]} 3... Nf6 {[%clk 0:02:59.4]}
4. e5 {[%clk 0:02:58.9]} 4... Nfd7 {[%clk 0:02:59.7]} 5. Ngf3 {[%clk 0:02:58.9]}
5... c5 {[%clk 0:02:59]} 6. c3 {[%clk 0:02:58.7]} 6... Nc6 {[%clk 0:02:57.3]} 7.
Bd3 {[%clk 0:02:58.9]} 7... cxd4 {[%clk 0:02:56.4]} 8. cxd4 {[%clk 0:02:58.9]}
8... Qb6 {[%clk 0:02:55.6]} 9. O-O {[%clk 0:02:58.9]} 9... a5 {[%clk 0:02:51.6]}
10. a3 {[%clk 0:02:57.5]} 10... a4 {[%clk 0:02:50.8]} 11. Re1 {[%clk 0:02:53.9]}
11... Nxd4 {[%clk 0:02:46.3]} 12. Nxd4 {[%clk 0:02:53.3]} 12... Qxd4 {[%clk
0:02:47.2]} 13. Nf3 {[%clk 0:02:53.4]} 13... Qb6 {[%clk 0:02:46.9]} 14. Be3
{[%clk 0:02:52.4]} 14... Bc5 {[%clk 0:02:44.9]} 15. Rc1 {[%clk 0:02:52]} 15...
h6 {[%clk 0:02:34.9]} 16. Rxc5 {[%clk 0:02:47]} 16... Nxc5 {[%clk 0:02:35.1]}
17. Qc2 {[%clk 0:02:47.4]} 17... Ra5 {[%clk 0:02:33.6]} 18. Rc1 {[%clk
0:02:47.6]} 18... O-O {[%clk 0:02:30.8]} 19. Bxc5 {[%clk 0:02:45.3]} 19... Rxc5
{[%clk 0:02:30.9]} 20. Qxc5 {[%clk 0:02:44.7]} 20... Qxb2 {[%clk 0:02:31.6]} 21.
Qxc8 {[%clk 0:02:32.5]} 21... Qxa3 {[%clk 0:02:29.5]} 22. Qc3 {[%clk 0:02:29.4]}
22... Qe7 {[%clk 0:02:25]} 23. Qc5 {[%clk 0:02:29.2]} 23... Qxc5 {[%clk
0:02:21]} 24. Rxc5 {[%clk 0:02:28.8]} 24... Ra8 {[%clk 0:02:21.7]} 25. Rc1
{[%clk 0:02:15.6]} 25... a3 {[%clk 0:02:19.7]} 26. Kf1 {[%clk 0:02:14.1]} 26...
a2 {[%clk 0:02:18.1]} 27. Ra1 {[%clk 0:02:14]} 27... Ra3 {[%clk 0:02:10.2]} 28.
Ke2 {[%clk 0:02:13.7]} 28... f6 {[%clk 0:02:07.4]} 29. exf6 {[%clk 0:02:12.4]}
29... gxf6 {[%clk 0:02:06.4]} 30. Nd4 {[%clk 0:02:12.4]} 30... e5 {[%clk
0:02:06]} 31. Nb5 {[%clk 0:02:12.7]} 31... Rb3 {[%clk 0:02:04.2]} 32. Rxa2
{[%clk 0:02:08.4]} 32... e4 {[%clk 0:02:03.9]} 33. Bxe4 {[%clk 0:02:01.4]} 33...
dxe4 {[%clk 0:02:02.9]} 34. Nd6 {[%clk 0:02:01.7]} 34... Rb4 {[%clk 0:01:59]}
35. Ke3 {[%clk 0:02:00]} 1-0

[Event "Late-Titled-Tuesday-Blitz-March-19-2024"]
[Site "Chess.com"]
[Date "2024.03.19"]
[Round "5"]
[White "Crazy_girl99"]
[Black "ilya2700"]
[Result "1-0"]
[WhiteElo "2589"]
[BlackElo "2332"]
[TimeControl "180+1"]
[EndTime "14:52:20 PDT"]
[Termination "Crazy_girl99 won by resignation"]

1. e4 {[%clk 0:02:57.8]} 1... c5 {[%clk 0:03:00.2]} 2. Nf3 {[%clk 0:02:57.7]}
2... e6 {[%clk 0:02:59.7]} 3. d4 {[%clk 0:02:56.9]} 3... cxd4 {[%clk 0:03:00.6]}
4. Nxd4 {[%clk 0:02:57.7]} 4... Nf6 {[%clk 0:03:01.1]} 5. Nc3 {[%clk 0:02:58.4]}
5... Nc6 {[%clk 0:03:01.5]} 6. Nxc6 {[%clk 0:02:57.6]} 6... bxc6 {[%clk
0:03:02.4]} 7. e5 {[%clk 0:02:58.1]} 7... Nd5 {[%clk 0:03:03]} 8. Ne4 {[%clk
0:02:58.8]} 8... Qc7 {[%clk 0:03:03.3]} 9. f4 {[%clk 0:02:58.5]} 9... Qb6 {[%clk
0:03:02.3]} 10. c4 {[%clk 0:02:58.2]} 10... Bb4+ {[%clk 0:03:02.6]} 11. Ke2
{[%clk 0:02:58.6]} 11... f5 {[%clk 0:02:37.6]} 12. exf6 {[%clk 0:02:57.9]} 12...
Nxf6 {[%clk 0:02:36.9]} 13. Be3 {[%clk 0:02:58.2]} 13... Qc7 {[%clk 0:02:26.5]}
14. Nxf6+ {[%clk 0:02:53.7]} 14... gxf6 {[%clk 0:02:27.4]} 15. c5 {[%clk
0:02:49.3]} 15... Qd8 {[%clk 0:01:44.4]} 16. Kf2 {[%clk 0:02:31.8]} 16... Qe7
{[%clk 0:01:44.1]} 17. Rc1 {[%clk 0:02:13.4]} 17... O-O {[%clk 0:01:38.2]} 18.
Qa4 {[%clk 0:02:10.8]} 18... Rb8 {[%clk 0:01:30.8]} 19. a3 {[%clk 0:02:08.1]}
19... e5 {[%clk 0:01:17]} 20. axb4 {[%clk 0:02:03.2]} 20... exf4 {[%clk
0:01:17.2]} 21. Bxf4 {[%clk 0:01:52.6]} 21... Qe4 {[%clk 0:01:15.4]} 22. Qb3+
{[%clk 0:01:48.8]} 22... d5 {[%clk 0:01:09.4]} 23. Bxb8 {[%clk 0:01:43.5]} 23...
Qf4+ {[%clk 0:01:00.7]} 24. Bxf4 {[%clk 0:01:42.4]} 1-0